Cogmind - Beta 17 @@@ ROGUE MODE // 2026.08.13 @ 20:33:23 Player: Fedop Result: Destroyed by H-55 Commando with Assault Rifle Performance ------------- Evolutions (2) 1000 Regions Visited (6) 1200 Robots Destroyed (80) 400 Value Destroyed (2326) 2326 Prototype IDs (2) 40 Alien Tech Used (0) 0 Bonus (758) 758 TOTAL SCORE: 5724 Bonus ------- High Alert Combat Kills 58 Entered Garrisons 200 Used RIF Installer 500 Cogmind --------- Core Integrity 0/550 Matter 66/300 Energy 76/100 System Corruption 3% Temperature Cool (0) Movement Core (50) Location -8/Materials Parts ------- > --- POWER (1) -------- (None) > --- PROPULSION (3) --- (None) > --- UTILITY (4) ------ (None) > --- WEAPON (3) ------- (None) > --- INVENTORY (5) ---- Deuterium Engine Core Analyzer Relay Coupler [Grunt] (36) Relay Coupler [Sentry] (33) Flail Peak State ------------ > --- POWER ------------ Light Deuterium Engine > --- PROPULSION ------- Wheel Wheel Compact Wheel > --- UTILITY ---------- Improved Heat Sink Medium Storage Unit Hardened Medium Armor Plating System Shield > --- WEAPON ----------- Precision Beam Rifle Precision Beam Rifle Precision Beam Rifle > --- INVENTORY -------- Light Ion Engine Compact Wheel Improved Sensor Array Improved Signal Interpreter Improved Terrain Scanner Precision Beam Rifle Ion Cannon Ion Cannon Mining Laser Flail [Rating: 30] Favorites ----------- Power Ion Engine Engine Ion Engine Power Core Light Nuclear Core Propulsion Compact Wheel Wheel Compact Wheel Flight Unit Improved Flight Unit Utility Small Storage Unit Device Improved Heat Sink Storage Small Storage Unit Processor Signal Interpreter Hackware System Shield Protection Hardened Medium Armor Plating Weapon Precision Beam Rifle Energy Gun Precision Beam Rifle Energy Cannon Ion Cannon Ballistic Gun Autogun Launcher Improved Grenade Launcher Special Weapon Mining Laser Impact Weapon Flail Build | -11 -10 -10 -9 -8 -8 -8 ------- Run | Yrd Mat Min Mat Mat Gar Mat Slots Evolved 4 | . . . 2 2 . . Power . | . . . . . . . Propulsion 1 | . . . . 1 . . Utility 2 | . . . 2 . . . Weapon 1 | . . . . 1 . . Parts Attached 59 | 6 7 5 9 24 4 4 Power 9 | 1 1 . 2 3 . 2 Engine 8 | 1 1 . 1 3 . 2 Core 1 | . . . 1 . . . Reactor . | . . . . . . . Propulsion 12 | 2 . 2 2 5 1 . Treads . | . . . . . . . Leg . | . . . . . . . Wheel 11 | 2 . 2 1 5 1 . Hover . | . . . . . . . Flight 1 | . . . 1 . . . Utility 16 | 1 2 2 2 6 1 2 Device 5 | . 2 . . 3 . . Storage 3 | 1 . . 1 1 . . Processor 2 | . . 1 . . . 1 Hackware 3 | . . . . 1 1 1 Protection 3 | . . 1 1 1 . . Artifact . | . . . . . . . Weapon 22 | 2 4 1 3 10 2 . Energy Gun 7 | 1 1 . . 4 1 . Energy Cannon 4 | . 1 . . 3 . . Ballistic Gun 5 | 1 . . 3 1 . . Ballistic Cannon . | . . . . . . . Launcher 3 | . 1 1 . 1 . . Special Weapon 2 | . 1 . . . 1 . Impact Weapon 1 | . . . . 1 . . Slashing Weapon . | . . . . . . . Piercing Weapon . | . . . . . . . Special Melee Weapon . | . . . . . . . Unidentified Prototypes 2 | . . . 1 1 . . Parts Lost 25 | . 3 3 4 5 4 6 Power 4 | . 1 . 1 1 . 1 Propulsion 10 | . . 2 1 3 2 2 Utility 3 | . 1 1 . . 1 . Weapon 8 | . 1 . 2 1 1 3 Highest Loss Streak 6 | . 2 2 3 2 2 6 To Critical Strikes 1 | . . . . . . 1 Average Backups 7 | 1 6 7 7 9 9 7 Power 1 | . . 1 1 . 1 1 Propulsion 1 | . 1 2 1 1 . . Utility 1 | . . . . 1 4 5 Weapon 3 | . 2 2 4 5 2 1 Tool/Special . | . . . . . . . Unused Backups 14 | . 1 . 1 7 1 4 Power 1 | . . . . 1 . . Propulsion . | . . . . . . . Utility 7 | . . . . 2 1 4 Weapon 6 | . 1 . 1 4 . . Tool/Special . | . . . . . . . Average Slot Usage (%) 88 | . 92 95 72 87 95 74 Engine 9 | . 13 14 3 8 9 7 Wheel 23 | . 28 26 19 20 24 14 Device 6 | . 7 . . 12 7 . Storage 11 | . 14 14 11 9 9 8 Processor 2 | . . . 11 1 . 6 Hackware 3 | . . . . 5 9 14 Protection 4 | . . 10 1 5 8 1 Energy Gun 11 | . 12 14 . 15 12 7 Energy Cannon 2 | . 3 . . 4 . . Ballistic Gun 5 | . 7 . 15 3 5 . Launcher 3 | . . 13 3 . 5 6 Special Weapon 1 | . 3 . . . . 5 Peak Build Rating 30 | 6 7 8 14 30 30 28 Average Rating 16 | 4 6 7 10 24 27 21 On Entrance 11 | . 6 6 8 9 29 22 Avg Prop Armor Cover (%) 2 | . . . . . 2 . Naked Turns 11 | . . . . . . 11 Heaviest Build 45 | 14 16 17 21 45 36 35 Greatest Support 36 | 32 32 32 32 36 36 26 Greatest Overweight (x) 7 | . . 1 5 4 7 4 Average Overweight (x) . | . . . . . . . Largest Inventory Capacity 10 | 8 8 8 10 10 10 10 Average Capacity 8 | 6 8 8 8 10 10 9 Most Carried 10 | 2 8 8 8 10 10 10 Average Carried 7 | 1 6 7 7 9 9 7 Final Capacity 10 | 8 8 8 10 10 10 5 Final Carried 10 | 2 7 6 7 10 10 5 Class Distribution -------------------- 54% | Mutant 13% | Tank 11% | Scavenger-Skirmisher 4% | Scavenger-Mutant 4% | Bothacker-Mutant 4% | Bothacker-Gunner 4% | Scavenger-Tank Dominant Class ---------------- Mutant | -10/Materials Mutant | -10/Mines Mutant | -9/Materials Tank | -8/Materials Tank | -8/Garrison Bothacker-Gunner | -8/Materials Resources | -11 -10 -10 -9 -8 -8 -8 ----------- Run | Yrd Mat Min Mat Mat Gar Mat Matter Collected 1537 | 238 219 110 332 527 111 . Remotely . | . . . . . . . Salvage Created 2414 | . 336 201 451 1004 279 143 Parts 120 | . 18 11 35 41 12 3 Haulers Intercepted 3 | . . . . 2 . 1 Recyclers Shooed 2 | . . . 2 . . . Parts Field Recycled . | . . . . . . . Retrieved Matter . | . . . . . . . Parts Self-Destructed . | . . . . . . . Prevented . | . . . . . . . Parts Restored . | . . . . . . . Kills | -11 -10 -10 -9 -8 -8 -8 ------- Run | Yrd Mat Min Mat Mat Gar Mat Combat Hostiles Destroyed 60 | . 8 6 16 20 9 1 Melee 1 | . . . . . 1 . Guns 25 | . 1 1 6 14 3 . Cannons 3 | . 2 . . 1 . . AOE 31 | . 5 5 10 5 5 1 Classes Destroyed 13 | . 5 . 3 4 1 . Worker 7 | . 3 . 2 2 . . Builder 2 | . 1 . . 1 . . Hauler 3 | . . . . 2 . 1 Recycler 3 | . . . 1 1 . 1 Mechanic 1 | . . . 1 . . . Operator 1 | . . . . 1 . . Watcher 3 | . 1 . 1 1 . . Swarmer 16 | . 3 . 6 6 1 . Grunt 31 | . 5 6 7 9 3 1 Brawler 1 | . . . . 1 . . Sentry 5 | . . . 3 2 . . Hunter 4 | . . . . 2 2 . Programmer 3 | . . . . . 3 . Best Kill Streak 8 | . 6 2 8 6 5 3 Combat Bots Only 6 | . 3 2 5 6 5 1 Max Kills in Single Turn 5 | . 2 2 5 3 1 1 Gunslinging . | . . . . . . . Exploded 3 | . 2 1 2 3 1 1 Melee 1 | . . . . . 1 . Uniques/NPCs Destroyed . | . . . . . . . Combat | -11 -10 -10 -9 -8 -8 -8 -------- Run | Yrd Mat Min Mat Mat Gar Mat Hostile Shots Fired 299 | . 36 7 51 91 56 58 Missed 87 | . 11 2 17 30 13 14 Hits 212 | . 25 5 34 61 43 44 Projectile 212 | . 25 5 34 61 43 44 Critical Strikes 8 | . . . 1 2 3 2 Damage Taken 3115 | . 499 144 453 899 475 645 Core 876 | . 191 12 120 213 54 286 Absorbed by Shields . | . . . . . . . Regen/Repaired (Parts) 23 | . . . 23 . . . Core Remaining (%) 62 | 100 . 18 70 . . . Volleys Fired 146 | . 35 8 23 53 13 14 Largest 3 | . 2 2 2 3 3 2 Hottest 183 | . 140 73 56 183 158 97 Shots Fired 321 | . 66 16 41 151 29 18 Gun 241 | . 41 8 24 136 20 12 Cannon 19 | . 7 . . 12 . . Launcher 44 | . 5 8 17 3 7 4 Special 17 | . 13 . . . 2 2 Kinetic 59 | . 13 . 24 19 3 . Thermal 180 | . 22 . . 129 17 12 Explosive 44 | . 5 8 17 3 7 4 Electromagnetic 34 | . 26 8 . . . . Robot Hit Streak 17 | . 8 4 9 17 8 9 Robot Miss Streak 4 | . 2 2 2 4 1 1 Penetration Max 1 | . . . . 1 . . Secondary Targets 4 | . . . . 4 . . Max Gunslinging Chain 1 | . . . . 1 . . Shots Hit Robots 200 | . 29 6 25 103 25 12 Core Hits 125 | . 17 12 29 45 14 8 Critical Kills . | . . . . . . . Critical Parts Destroyed . | . . . . . . . Critical Strikes 13 | . . . . 11 2 . Burn 13 | . . . . 11 2 . Melee Attacks 13 | . . . . 1 12 . Impact 13 | . . . . 1 12 . Slashing . | . . . . . . . Piercing . | . . . . . . . Sneak Attacks 1 | . . . . . 1 . Combat Hostiles 1 | . . . . . 1 . Follow-up Attacks . | . . . . . . . Damage Inflicted 5736 | . 724 358 1263 2090 846 455 Guns 2670 | . 250 40 299 1649 292 140 Cannons 291 | . 87 . . 204 . . Explosions 2697 | . 383 318 960 237 484 315 Melee 70 | . . . . . 70 . Ramming 8 | . 4 . 4 . . . Kinetic 645 | . 109 . 299 202 35 . Thermal 2266 | . 218 . . 1651 257 140 Explosive 2590 | . 276 318 960 237 484 315 Electromagnetic 157 | . 117 40 . . . . Impact 70 | . . . . . 70 . Slashing . | . . . . . . . Piercing . | . . . . . . . Highest Corruption 3 | . . . . 2 3 3 Average Corruption 2 | . . . . 2 2 3 Corruption Purged . | . . . . . . . Corruption Blocked . | . . . . . . . Effects 17 | . . . . 6 8 3 Message Errors 3 | . . . . . 2 1 Matter Fused 2 | . . . . 1 . 1 Heat Flow Errors 2 | . . . . 2 . . Energy Discharges 5 | . . . . 1 3 1 Data Loss (minor) 3 | . . . . 1 2 . Data Loss (major) 1 | . . . . . 1 . Weapon Failures 1 | . . . . 1 . . Overload Shots . | . . . . . . . Overflow Damage 152 | . 51 23 9 . 69 . Projectiles . | . . . . . . . Explosions 102 | . 51 23 9 . 19 . Melee 50 | . . . . . 50 . Knockbacks 1 | . . . . . 1 . Impact 1 | . . . . . 1 . Kinetic . | . . . . . . . Secondary . | . . . . . . . Self-Inflicted Damage 325 | . 146 76 55 48 . . Shots 13 | . 6 3 3 1 . . Rammed 4 | . 3 . 1 . . . Targets Rammed 4 | . 3 . 1 . . . Kicked . | . . . . . . . Crushed . | . . . . . . . Highest Temperature 439 | . 175 81 35 439 245 100 Average Temperature 71 | . 54 33 10 94 90 50 Received Heat Transfer 813 | . 141 39 129 333 18 153 Effects 1 | . . . . 1 . . Energy Bleed 1 | . . . . 1 . . Siege Activations . | . . . . . . . Martial Activations . | . . . . . . . Shielding Activations . | . . . . . . . Robots Disrupted . | . . . . . . . Combat Hostiles . | . . . . . . . Robots Corrupted . | . . . . . . . Combat Hostiles . | . . . . . . . Parts Fried . | . . . . . . . Impact Corruptions 1 | . . . . . 1 . Robots Melted . | . . . . . . . Combat Hostiles . | . . . . . . . Parts Melted 17 | . . . . 15 2 . Heat Transferred 5529 | . 335 . . 4292 606 296 Parts Sabotaged . | . . . . . . . Parts Stolen . | . . . . . . . Parts Stripped . | . . . . . . . Power Chain Reactions 2 | . 2 . . . . . Alert | -11 -10 -10 -9 -8 -8 -8 ------- Run | Yrd Mat Min Mat Mat Gar Mat Maximum Alert Level 2 | . . . 2 1 2 1 Low Security (%) 65 | 100 100 100 42 68 . 43 Level 1 24 | . . . 42 31 47 56 Level 2 10 | . . . 14 . 52 . Level 3 . | . . . . . . . Level 4 . | . . . . . . . Level 5 . | . . . . . . . High Security . | . . . . . . . Max Security . | . . . . . . . Peak Influence 466 | . 142 158 425 395 466 227 Initial 251 | . . 5 53 166 251 226 Average 170 | . 69 52 230 177 374 200 Influence Increases 2031 | . 301 248 552 597 275 58 Destroy 0b10 Robot/C 1200 | . 160 120 320 400 180 20 Destroy 0b10 Robot/NC 100 | . 25 . 25 40 . 10 Destroy Leader 232 | . 42 30 72 86 . 2 Successful Hack 5 | . 5 . . . . . Disable Machine 135 | . 30 45 30 30 . . Destroy Structure 299 | . 39 53 90 26 65 26 Partial Spotted 15 | . . . 15 . . . Lose Combat Pursuer 45 | . . . . 15 30 . Influence Decreases 1877 | . 287 124 295 605 196 370 Entered New Map 699 | . . 9 85 229 136 240 Time Decay 908 | . 257 85 170 326 . 70 Lost Part 250 | . 30 30 40 50 40 60 Lost Ally 20 | . . . . . 20 . Squads Dispatched 8 | . 1 . 2 5 . . Investigation 1 | . . . 1 . . . Extermination . | . . . . . . . Reinforcement 3 | . 1 . 1 1 . . Assault . | . . . . . . . Garrison 4 | . . . . 4 . . Intercept . | . . . . . . . Searches Triggered . | . . . . . . . Construction Impeded . | . . . . . . . Haulers Reinforced . | . . . . . . . Active Scanning Responses . | . . . . . . . Cargo Convoy Interrupts . | . . . . . . . Stealth | -11 -10 -10 -9 -8 -8 -8 --------- Run | Yrd Mat Min Mat Mat Gar Mat Distress Signals 6 | . 1 . 2 1 . 2 Communications Jammed . | . . . . . . . Distress Signals . | . . . . . . . Times Spotted 91 | . 14 6 24 27 12 8 Peak Tracking Total 7 | . 4 2 5 6 5 7 Tactical Retreats 3 | . . . . 1 2 . Traps | -11 -10 -10 -9 -8 -8 -8 ------- Run | Yrd Mat Min Mat Mat Gar Mat Traps Triggered 8 | . 1 . . 5 2 . Indirectly . | . . . . . . . Trap Hack Attempts . | . . . . . . . Triggered . | . . . . . . . Disarmed . | . . . . . . . Reprogrammed . | . . . . . . . Reused . | . . . . . . . Traps Extracted . | . . . . . . . Installed . | . . . . . . . Triggered . | . . . . . . . Machines | -11 -10 -10 -9 -8 -8 -8 ---------- Run | Yrd Mat Min Mat Mat Gar Mat Machines Disabled 9 | . 2 3 2 2 . . Max in Single Turn 2 | . 1 2 1 1 . . Machines Repaired . | . . . . . . . Machines Dismantled . | . . . . . . . Machines Sabotaged . | . . . . . . . Overloaded Fab Kills . | . . . . . . . Hacking | -11 -10 -10 -9 -8 -8 -8 --------- Run | Yrd Mat Min Mat Mat Gar Mat Machines Accessed 16 | . 6 . 5 3 1 1 Terminals 11 | . 5 . 3 1 1 1 Fabricators . | . . . . . . . Repair Stations 1 | . . . 1 . . . Recycling Units 3 | . 1 . 1 1 . . Scanalyzers . | . . . . . . . Garrison Access 1 | . . . . 1 . . Total Hacks 35 | . 14 . 12 5 1 3 Successful 13 | . 4 . 6 2 1 . Failed 22 | . 10 . 6 3 . 3 Catastrophic 5 | . 1 . 3 . . 1 Database Lockouts . | . . . . . . . Manual 6 | . 2 . 1 . . 3 Terminals 24 | . 12 . 6 2 1 3 Fabricators . | . . . . . . . Repair Stations 4 | . . . 4 . . . Recycling Units 6 | . 2 . 2 2 . . Scanalyzers . | . . . . . . . Garrison Access 1 | . . . . 1 . . Terminal Hacks 5 | . 3 . 1 . 1 . Record 1 | . . . 1 . . . Emergency Access Points 1 | . 1 . . . . . Maintenance Status 1 | . 1 . . . . . Transport Status 1 | . 1 . . . . . Garrison Registry 1 | . . . . . 1 . Fabricator Hacks . | . . . . . . . Repair Station Hacks 3 | . . . 3 . . . Scan Component 2 | . . . 2 . . . Repair 1 | . . . 1 . . . Recycling Unit Hacks 4 | . 1 . 2 1 . . Report Inventory 3 | . . . 2 1 . . Retrieve Components 1 | . 1 . . . . . Scanalyzer . | . . . . . . . Garrison Access Hacks 1 | . . . . 1 . . Unlock Access 1 | . . . . 1 . . Unauthorized Hacks . | . . . . . . . Terminals . | . . . . . . . Fabricators . | . . . . . . . Repair Stations . | . . . . . . . Recycling Units . | . . . . . . . Scanalyzers . | . . . . . . . Garrison Access . | . . . . . . . Data Cores Recovered . | . . . . . . . Used . | . . . . . . . Hacking Detections 13 | . 6 . 4 2 . 1 Full Trace Events 2 | . 1 . 1 . . . Feedback Events . | . . . . . . . Feedback Blocked . | . . . . . . . Robot Schematics Acquired . | . . . . . . . Robots Built . | . . . . . . . Authchips . | . . . . . . . Time . | . . . . . . . Total Robot Build Rating . | . . . . . . . Part Schematics Acquired . | . . . . . . . Parts Built . | . . . . . . . Authchips . | . . . . . . . Time . | . . . . . . . Total Part Build Rating . | . . . . . . . Part Studies Acquired . | . . . . . . . Parts Repaired 1 | . . . 1 . . . Time 36 | . . . 36 . . . Parts Recycled . | . . . . . . . Recycled Matter . | . . . . . . . Retrieved Matter . | . . . . . . . Retrieved Components 2 | . 2 . . . . . Parts Scanalyzed . | . . . . . . . Part Schematics Acquired . | . . . . . . . Parts Damaged . | . . . . . . . Bothacking | -11 -10 -10 -9 -8 -8 -8 ------------ Run | Yrd Mat Min Mat Mat Gar Mat Used RIF Installer 1 | . . . . . 1 . Robots Hacked 2 | . . . . . 1 1 Non-combat 1 | . . . . . . 1 Combat 1 | . . . . . 1 . Robot Hacks Applied 2 | . . . . . 1 1 link_fov 1 | . . . . . . 1 formatsys_high 1 | . . . . . 1 . Relay Couplers Released . | . . . . . . . Attached 2 | . . . . . 1 1 Fabnet Peak Effective % . | . . . . . . . Robots Rewired . | . . . . . . . Allies Hacked . | . . . . . . . Hacks Repelled . | . . . . . . . Allies | -11 -10 -10 -9 -8 -8 -8 -------- Run | Yrd Mat Min Mat Mat Gar Mat Total Allies 1 | . . . . . 1 . Largest Group 1 | . . . . . 1 . Highest-Rated Group 5 | . . . . . 5 . Highest-Rated Ally 5 | . . . . . 5 . Total Orders . | . . . . . . . Ally Attacks 4 | . . . . . 4 . Total Damage 21 | . . . . . 21 . Kills . | . . . . . . . Allies Corrupted . | . . . . . . . Allies Melted . | . . . . . . . Intel | -11 -10 -10 -9 -8 -8 -8 ------- Run | Yrd Mat Min Mat Mat Gar Mat Active Infowar (turns) 898 | . 417 . . 438 29 14 Sensors 571 | . 271 . . 257 29 14 Terrain 181 | . . . . 181 . . Structural 146 | . 146 . . . . . Robot Analysis Total . | . . . . . . . Derelict Logs Recovered 1 | . . 1 . . . . Drone Launches . | . . . . . . . Drone Recoveries . | . . . . . . . Exploration | -11 -10 -10 -9 -8 -8 -8 ------------- Run | Yrd Mat Min Mat Mat Gar Mat Turns Passed 2760 | 61 728 303 342 739 434 153 Spaces Moved 2020 | 52 543 262 240 482 357 84 Core 26 | 3 . . 1 4 1 17 Treads . | . . . . . . . Legs . | . . . . . . . Wheels 1994 | 49 543 262 239 478 356 67 Hover . | . . . . . . . Flight . | . . . . . . . Fastest Speed 50 | 50 100 100 90 86 86 50 Average Speed 97 | 97 100 100 100 96 89 101 Slowest Speed 400 | 100 100 115 300 250 400 250 Overloaded Moves . | . . . . . . . Propulsion Burnouts . | . . . . . . . Robots Hopped . | . . . . . . . Potential Cave-ins . | . . . . . . . Cave-ins Triggered . | . . . . . . . Exploration Rate (%) 34 | 4 79 56 29 21 46 8 Regions Visited 6 Branch Regions 1 Pre-discovered Areas 2 | . . 2 . . . . Known Exits Taken 3 | . . 1 1 1 . . Unknown Exits Taken 2 | 1 1 . . . . . Scrap Searched . | . . . . . . . Spaces Dug 13 | . 11 . . . 2 . Terrain Destroyed 319 | . 45 68 112 25 40 29 Melee 2 | . . . . . 2 . Projectile 13 | . 12 . . 1 . . AOE 304 | . 33 68 112 24 38 29 Terrain Rammed . | . . . . . . . Walls Destroyed . | . . . . . . . Machines Disabled . | . . . . . . . Actions | -11 -10 -10 -9 -8 -8 -8 --------- Run | Yrd Mat Min Mat Mat Gar Mat Total 2473 | 59 632 284 303 635 426 134 Wait 111 | . 24 7 16 24 12 28 Move 2013 | 51 542 261 239 481 355 84 Hop . | . . . . . . . Pick Up 40 | 2 10 2 4 16 6 . Fast Attach 46 | 6 2 1 8 26 2 1 Attach 19 | . 3 3 2 4 4 3 Detach 4 | . . . 1 3 . . Swap 29 | . 9 2 3 5 8 2 Drop 40 | . 4 . 6 22 6 2 Fire 146 | . 35 8 23 53 13 14 Melee 13 | . . . . 1 12 . Ram 4 | . 3 . 1 . . . Kick . | . . . . . . . Crush . | . . . . . . . Escape Stasis 8 | . . . . . 8 . Rewire . | . . . . . . . Trap . | . . . . . . . Miscellaneous . | . . . . . . . Route ------- -11/Scrapyard -10/Materials (discovered 4 exits: *Mat x2 / [*Min x2]) -10/Mines (discovered 2 exits: *Mat x2) -9/Materials -8/Materials -8/Garrison (discovered 3 exits: *Mat x3) -8/Materials History --------- Turn | Location | Event 17 | -11/Scrapyard | Discovered new exit (range 15) 62 | -11/Scrapyard | Entered Materials 195 | -10/Materials | Discovered new exit (range 5) 308 | -10/Materials | Build established: Mutant 310 | -10/Materials | Discovered new exit (range 13) 453 | -10/Materials | Core integrity fell below 50% 548 | -10/Materials | Discovered new exit (range 7) 608 | -10/Materials | Discovered new exit (range 16) 790 | -10/Materials | Entered Mines 849 | -10/Mines | Learned location of Zion (-6) 882 | -10/Mines | Received a Rocket Launcher from a helpful Derelict 1053 | -10/Mines | Discovered new exit (range 12) 1061 | -10/Mines | Core integrity fell below 20% 1068 | -10/Mines | Discovered new exit (range 6) 1069 | -10/Mines | Learned location of Storage (-8) 1092 | -10/Mines | Identified exit to Materials 1093 | -10/Mines | Entered Materials 1093 | -9/Materials | Evolved 2 slots: Utility x2 1197 | -9/Materials | Repaired Broken Com. Wheel 1417 | -9/Materials | Lost 3 parts (1p1n1w) 1419 | -9/Materials | Discovered new exit (range 10) 1434 | -9/Materials | Identified exit to Materials 1435 | -9/Materials | Entered another Materials area 1435 | -8/Materials | Evolved 2 slots: Propulsion x1, Weapon x1 1772 | -8/Materials | Garrison activated, responded to threat 2119 | -8/Materials | Garrison activated, responded to threat 2173 | -8/Materials | Identified exit to Garrison 2174 | -8/Materials | Entered Garrison 2195 | -8/Garrison | Build established: Scavenger-Skirmisher 2196 | -8/Garrison | Triggered checkpoint 2257 | -8/Garrison | Installed Relay Interface Framework 2298 | -8/Garrison | Discovered new exit (range 12) 2306 | -8/Garrison | Discovered new exit (range 51) 2306 | -8/Garrison | Discovered new exit (range 11) 2306 | -8/Garrison | Discovered new exit (range 67) 2608 | -8/Garrison | Entered Materials 2707 | -8/Materials | Core integrity fell below 50% 2750 | -8/Materials | Released all parts (4) 2751 | -8/Materials | Core integrity fell below 20% 2761 | -8/Materials | Destroyed by H-55 Commando with Assault Rifle Last Messages --------------- 02724_ K-01 Serf collects debris. 02725_ Penetrated by Slug. 02729_ K-01 Serf cleans the Recycling Unit. 02731_ Penetrated by Slug. 02731_ Remote Datajack destroyed. 02734_ K-01 Serf collects debris. 02735_ Slug penetrates Wall. 02736_ The unstable cave ceiling collapses. 02737_ TKODH8R4%U1AWOS&M8B IXK%EQG